bitfinex-derivatives/quotes_BNBF0:USTF0_20241230
["timestamp","ask_amount","ask_price","bid_price","bid_amount"]
[1735545838237,0.26362246,699.05,697.31,1.06883765]
[1735545838441,0.28609847,699.06,697.31,1.06883765]
[1735545838442,0.26362246,699.04,697.31,1.06883765]
[1735545838641,0.26362246,699.05,697.31,1.06883765]
[1735545838838,0.26362246,699.04,697.31,1.06883765]
[1735545839042,0.26362246,699.05,697.33,1.06883765]
[1735545839243,0.26362246,699.04,697.33,1.06883765]
[1735545839545,0.26362246,699.03,697.33,1.06883765]
[1735545839744,0.26362246,699.02,697.33,1.06883765]
[1735545839944,0.26362246,699.01,697.33,1.06883765]
[1735545840144,0.28609847,699.06,697.33,1.06883765]
[1735545840344,0.28609847,699.06,696.72,1.28260518]
[1735545840345,0.28609847,699.06,697.37,1.06883765]
[1735545840543,0.2635991,699.05,697.37,1.06883765]
[1735545840744,0.28609847,699.06,697.37,1.06883765]
[1735545840939,0.26358226,699.05,697.37,1.06883765]
[1735545842046,0.26358486,699.04,697.37,1.06883765]
[1735545842238,0.26358486,699.03,697.37,1.06883765]
[1735545842444,0.26358486,699.02,697.37,1.06883765]
[1735545842747,0.26358486,699.01,697.38,1.06883765]
[1735545842944,0.26358486,699.05,697.38,1.06883765]
[1735545843245,0.26358486,699.04,697.38,1.06883765]
[1735545843442,0.26358486,699.03,697.38,1.06883765]
[1735545843645,0.26358486,699.02,697.56,1.06883765]
[1735545843837,0.26358486,699.01,697.56,1.06883765]
[1735545844143,0.26358486,699.0,697.56,1.06883765]
[1735545844340,0.26358486,698.99,697.56,1.06883765]
[1735545844545,0.26357865,698.98,697.55,1.06883765]
[1735545844739,0.2861394,698.96,697.55,1.06883765]
[1735545844944,0.26357865,698.95,697.55,1.06883765]
[1735545845439,0.26357865,698.95,697.56,1.06883765]
[1735545846644,0.26357865,698.95,697.6,1.06883765]
[1735545846842,0.28615168,698.93,697.6,1.06883765]
[1735545847242,0.26357087,698.92,697.6,1.06883765]
[1735545847541,0.28616397,698.9,697.6,1.06883765]
[1735545847744,0.26357952,698.89,697.6,1.06883765]
[1735545848142,0.26357952,698.89,697.46,1.06883765]
[1735545849343,0.26357952,698.89,696.74,2.18221021]
[1735545849344,0.26358472,698.88,697.48,1.06883765]
[1735545849547,0.54976097,698.87,697.48,1.06883765]
[1735545849748,0.26360479,698.86,697.48,1.06883765]
[1735545850548,0.26360479,698.86,697.43,1.06883765]
[1735545851550,0.26360479,698.86,697.39,1.06883765]
[1735545852343,0.28618854,698.84,697.39,1.06883765]
[1735545852641,0.26362981,698.83,697.41,1.06883765]
[1735545853643,0.26362981,698.83,697.4,1.06883765]
[1735545854042,0.28620082,698.81,697.4,1.06883765]
[1735545854245,0.26362981,698.8,697.4,1.06883765]
[1735545854441,0.28621311,698.78,697.4,1.06883765]
[1735545854645,0.26362981,698.77,697.4,1.06883765]
[1735545854842,0.26362981,698.77,697.59,1.06883765]
[1735545855249,0.26359949,698.76,697.59,1.06883765]
[1735545855443,0.26359949,698.77,697.59,1.06883765]
[1735545855647,0.26359949,698.76,697.59,1.06883765]
[1735545855848,0.26359949,698.77,697.59,1.06883765]
[1735545856048,0.26359949,698.76,697.62,1.06883765]
[1735545856248,0.26359949,698.75,697.62,1.06883765]
[1735545856452,0.26359949,698.77,697.62,1.06883765]
[1735545856650,0.26359949,698.76,697.62,1.06883765]
[1735545856844,0.26359949,698.75,697.62,1.06883765]
[1735545857048,0.26359949,698.74,697.62,1.06883765]
[1735545857249,1.0668974,698.69,697.59,1.06883765]
[1735545857550,0.26363021,698.68,697.59,1.06883765]
[1735545858253,1.0668974,698.66,697.6,1.06883765]
[1735545858453,0.26363021,698.65,697.6,1.06883765]
[1735545858653,0.28627456,698.63,697.6,1.06883765]
[1735545858857,0.26363021,698.62,697.6,1.06883765]
[1735545859047,0.28628685,698.6,697.6,1.06883765]
[1735545859248,0.26363021,698.59,697.62,1.06883765]
[1735545859554,0.28629915,698.57,697.62,1.06883765]
[1735545860548,0.28629915,698.57,697.63,1.06883765]
[1735545860953,0.26363932,698.56,697.63,1.06883765]
[1735545861350,0.28629915,698.57,697.63,1.06883765]
[1735545861955,0.28629915,698.57,697.61,1.06883765]
[1735545863048,0.28629915,698.57,697.51,1.06883765]
[1735545864049,0.28629915,698.57,697.47,1.06883765]
[1735545865055,0.26368607,698.56,697.47,1.06883765]
[1735545865353,0.28629915,698.57,697.47,1.06883765]
[1735545865555,0.28629915,698.57,697.4,1.06883765]
[1735545866452,0.28629915,698.57,697.37,1.06883765]
[1735545867054,0.26367717,698.56,697.37,1.06883765]
[1735545867253,0.28631144,698.54,697.37,1.06883765]
[1735545868050,0.26367268,698.53,697.37,1.06883765]
[1735545868455,0.28632374,698.51,697.37,1.06883765]
[1735545868852,0.28632374,698.51,697.13,1.06883765]
[1735545868853,0.28632374,698.51,697.39,1.06883765]
[1735545870058,0.28632374,698.51,697.37,1.06883765]
[1735545870957,0.28632374,698.51,697.38,1.06883765]
[1735545872459,0.28632374,698.51,697.4,1.06883765]
[1735545873159,0.28632374,698.51,697.18,1.06883765]
[1735545873160,0.28632374,698.51,697.39,1.06883765]
[1735545874159,0.26368478,698.5,697.39,1.06883765]
[1735545874359,0.28632374,698.51,697.39,1.06883765]
[1735545874557,0.28633604,698.48,697.35,1.06883765]
[1735545875359,0.26368834,698.47,697.38,1.06883765]
[1735545875960,0.28634834,698.45,697.38,1.06883765]
[1735545876654,0.28634834,698.45,697.33,1.06883765]
[1735545877561,0.28634834,698.45,697.38,1.06883765]
[1735545878561,0.28634834,698.45,697.41,1.06883765]
[1735545879562,0.28634834,698.45,697.31,1.06883765]
[1735545880860,0.28634834,698.45,697.34,1.06883765]
[1735545882069,0.28634834,698.45,697.4,1.06883765]
[1735545883370,0.28634834,698.45,697.49,1.06883765]
[1735545883770,0.28634834,698.45,697.09,2.59191692]
[1735545883771,0.28634834,698.45,697.53,1.06883765]
[1735545884970,0.28634834,698.45,697.55,1.06883765]
[1735545886073,0.28634834,698.45,697.38,1.06883765]
[1735545887367,0.28634834,698.45,697.49,1.06883765]
[1735545888370,0.28634834,698.45,697.59,1.06883765]
[1735545888770,0.28634834,698.45,697.6,0.56487346]
[1735545888969,0.28634834,698.45,697.61,0.56487346]
[1735545889175,0.28634834,698.45,697.62,0.56487346]
[1735545889375,0.28634834,698.45,697.63,0.56487346]
[1735545889677,0.28634834,698.45,697.64,0.56482227]
[1735545889876,0.28634834,698.45,697.65,0.56482227]
[1735545890069,0.28634834,698.45,697.66,0.56482227]
[1735545890269,0.28634834,698.45,697.67,0.56482227]
[1735545890471,0.28634834,698.45,697.68,0.56482227]
[1735545890673,0.28634834,698.45,697.69,0.56482227]
[1735545890873,0.28634834,698.45,697.7,0.56482227]
[1735545891178,0.28634834,698.45,697.71,0.56482227]
[1735545891380,0.28634834,698.45,697.72,0.56482227]
[1735545891579,0.28634834,698.45,697.73,0.56482227]
[1735545891780,0.28634834,698.45,697.74,0.56482227]
[1735545892075,0.28634834,698.45,697.75,0.56482227]
[1735545892280,0.28634834,698.45,697.76,0.56482227]
[1735545892479,0.28634834,698.45,697.77,0.56482227]
[1735545892679,0.28634834,698.45,697.54,1.06883765]
[1735545892979,0.28634834,698.45,697.55,0.56485062]
[1735545893175,0.28634834,698.45,697.56,0.56486356]
[1735545893380,0.28634834,698.45,697.57,0.56486356]
[1735545893581,0.28634834,698.45,697.58,0.56486356]
[1735545893775,0.28634834,698.45,697.59,0.56486356]
[1735545893978,0.28634834,698.45,697.6,0.56486356]
[1735545894176,0.28634834,698.45,697.61,0.56486356]
[1735545894376,0.28634834,698.45,697.62,0.56486356]
[1735545894582,0.28634834,698.45,697.63,0.56486356]
[1735545894782,0.28634834,698.45,697.64,0.56486356]
[1735545894977,0.28634834,698.45,697.65,0.56486356]
[1735545895180,0.28634834,698.45,697.66,0.56486356]
[1735545895483,0.28634834,698.45,697.67,0.56486356]
[1735545895780,0.28634834,698.45,697.52,1.06883765]
[1735545895985,0.28634834,698.45,697.53,0.56491783]
[1735545896282,0.28634834,698.45,697.54,0.56491783]
[1735545896483,0.28634834,698.45,697.55,0.56491783]
[1735545896682,0.28634834,698.45,697.56,0.56491783]
[1735545896882,0.28634834,698.45,697.57,0.56491783]
[1735545897082,0.28634834,698.45,697.58,0.56491783]
[1735545897283,0.28634834,698.45,697.59,0.56491783]
[1735545897484,0.28634834,698.45,697.6,0.56491783]
[1735545897685,0.28634834,698.45,697.61,0.56491783]
[1735545897885,0.28634834,698.45,697.62,0.56491783]
[1735545898084,0.28634834,698.45,697.63,0.56491783]
[1735545898283,0.28634834,698.45,697.64,0.56491783]
[1735545898482,0.28634834,698.45,697.65,0.56491783]
[1735545898679,0.28634834,698.45,697.66,0.56491783]
[1735545898883,0.28634834,698.45,697.03,1.28260518]
[1735545898884,0.28634834,698.45,697.49,1.06883765]
[1735545899081,0.28634834,698.45,697.5,0.56497587]
[1735545899279,0.28634834,698.45,697.51,0.56497587]
[1735545899483,0.28634834,698.45,697.52,0.56497587]
[1735545899785,0.28634834,698.45,697.53,0.56497587]
[1735545899986,0.28634834,698.45,697.54,0.56497587]
[1735545900186,0.28634834,698.45,697.55,0.56497587]
[1735545900385,0.28634834,698.45,697.56,0.56497587]
[1735545900686,0.28634834,698.45,697.57,0.56497587]
[1735545900887,0.28634834,698.45,697.58,0.56497587]
[1735545901079,0.28634834,698.45,697.47,1.06883765]
[1735545901384,0.28634834,698.45,697.48,1.63385588]
[1735545901587,0.28634834,698.45,697.49,0.56501823]
[1735545901786,0.28634834,698.45,697.48,1.06883765]
[1735545901986,0.28634834,698.45,697.49,0.5650012]
[1735545902282,0.28634834,698.45,697.5,0.5650012]
[1735545902482,0.28634834,698.45,697.51,0.5650012]
[1735545902682,0.28634834,698.45,697.52,0.5650012]
[1735545902883,0.28634834,698.45,697.53,0.5650012]
[1735545903178,0.28634834,698.45,697.54,0.5650012]
[1735545903382,0.28634834,698.45,697.55,0.5650012]
[1735545903586,0.28634834,698.45,697.56,0.5650012]
[1735545903787,0.28634834,698.45,697.57,0.5650012]
[1735545903986,0.28634834,698.45,697.58,0.5650012]
[1735545904181,0.28634834,698.45,697.59,0.5650012]
[1735545904384,0.28634834,698.45,697.6,0.5650012]
[1735545904584,0.28634834,698.45,697.61,0.5650012]
[1735545904785,0.28634834,698.45,697.62,0.5650012]
[1735545905088,0.28634834,698.45,697.63,0.5650012]
[1735545905282,0.28634834,698.45,697.64,0.5650012]
[1735545905485,0.28634834,698.45,697.65,0.5650012]
[1735545905687,0.28634834,698.45,697.66,0.5650012]
[1735545905889,0.28634834,698.45,697.67,0.5650012]
[1735545906089,0.28634834,698.45,697.68,0.5650012]
[1735545906388,0.28634834,698.45,696.98,1.28260518]
[1735545906389,0.28634834,698.45,697.69,0.5650012]
[1735545906583,0.28634834,698.45,697.7,0.5650012]
[1735545906788,0.28634834,698.45,697.71,0.5650012]
[1735545906987,0.28634834,698.45,697.72,0.5650012]
[1735545907187,0.28634834,698.45,697.73,0.56519636]
[1735545907388,0.28634834,698.45,697.74,0.56519636]
[1735545907690,0.28634834,698.45,697.75,0.56519636]
[1735545907989,0.28634834,698.45,697.76,0.56519636]
[1735545908291,0.28634834,698.45,697.77,0.56532524]
[1735545908492,0.28634834,698.45,697.78,0.56532524]
[1735545908790,0.28634834,698.45,697.79,0.56532524]
[1735545908992,0.28634834,698.45,697.8,0.56532524]
[1735545909187,0.28634834,698.45,697.81,0.56538931]
[1735545909388,0.28634834,698.45,697.82,0.56538931]
[1735545909592,0.28634834,698.45,697.83,0.56538931]
[1735545909889,0.28634834,698.45,697.84,0.56538931]
[1735545910090,0.28634834,698.45,697.85,0.56538931]
[1735545910292,0.28634834,698.45,697.86,0.56538931]
[1735545910590,0.28634834,698.45,697.87,0.56538931]
[1735545910787,0.28634834,698.45,697.88,0.56538931]
[1735545910990,0.28634834,698.45,697.89,0.56538931]
[1735545911190,0.28634834,698.45,697.9,0.56538931]
[1735545911387,0.28634834,698.45,697.91,0.56538931]
[1735545911691,0.28634834,698.45,697.92,0.56538931]
[1735545911894,0.28634834,698.45,697.93,0.56538931]
[1735545912097,0.28634834,698.45,697.94,0.56538931]
[1735545912394,0.28634834,698.45,697.95,0.56538931]
[1735545912596,0.28634834,698.45,697.96,0.56538931]
[1735545912793,0.28634834,698.45,697.97,0.56539111]
[1735545912996,0.28634834,698.45,697.98,0.56539111]
[1735545913202,0.28634834,698.45,697.99,0.56539111]
[1735545913388,0.28634834,698.45,697.1,1.06883765]
[1735545913389,0.28634834,698.45,697.52,1.06883765]
[1735545913594,0.28634834,698.45,697.53,0.56530821]
[1735545913792,0.28634834,698.45,697.54,0.56530821]
[1735545913991,0.28634834,698.45,697.55,0.56530821]
[1735545914194,0.28634834,698.45,697.56,0.56530821]
[1735545914391,0.28634834,698.45,697.57,0.56530821]
[1735545914691,0.28634834,698.45,697.58,1.63414586]
[1735545914895,0.28634834,698.45,697.59,0.56530821]
[1735545915191,0.28634834,698.45,697.6,0.56530821]
[1735545915396,0.28634834,698.45,697.61,0.56530821]
[1735545915597,0.28634834,698.45,697.62,0.56530821]
[1735545915800,0.28634834,698.45,697.63,0.56530821]
[1735545915999,0.28634834,698.45,697.64,0.56530821]
[1735545916297,0.28634834,698.45,697.59,1.06883765]
[1735545916298,0.28634834,698.45,697.65,0.56530821]
[1735545916498,0.28634834,698.45,697.66,0.56510485]
[1735545916699,0.28634834,698.45,697.67,0.56510485]
[1735545916898,0.28634834,698.45,697.68,0.56510485]
[1735545917194,0.28634834,698.45,697.17,1.06883765]
[1735545917195,0.28634834,698.45,697.75,1.06883765]
[1735545917399,0.28634834,698.45,697.76,0.56510485]
[1735545917600,0.28634834,698.45,697.77,0.56510485]
[1735545917795,0.28634834,698.45,697.78,0.56510485]
[1735545918000,0.28634834,698.45,697.79,0.56510485]
[1735545918200,0.28634834,698.45,697.8,0.56510485]
[1735545918401,0.28634834,698.45,697.81,0.56510485]
[1735545918698,0.28634834,698.45,697.82,0.56510485]
[1735545918900,0.28634834,698.45,697.83,0.56510485]
[1735545919097,0.28634834,698.45,697.84,0.56510485]
[1735545919296,0.28634834,698.45,697.85,0.56510485]
[1735545919497,0.28634834,698.45,697.86,0.56510485]
[1735545919699,0.28634834,698.45,697.87,0.56510485]
[1735545919905,0.28634834,698.45,697.6,1.06883765]
[1735545920200,0.28634834,698.45,697.61,0.56496221]
[1735545920396,0.28634834,698.45,697.62,0.56496221]
[1735545920597,0.28634834,698.45,697.65,1.06883765]
[1735545920802,0.28634834,698.45,697.66,0.56496221]
[1735545920995,0.28634834,698.45,697.67,0.56496221]
[1735545921198,0.28634834,698.45,697.68,0.56496221]
[1735545921394,0.28634834,698.45,697.69,0.56496221]
[1735545921599,0.28634834,698.45,697.7,0.56496221]
[1735545921903,0.28634834,698.45,697.72,1.06883765]
[1735545922201,0.28634834,698.45,697.73,0.56496221]
[1735545922400,0.28634834,698.45,697.74,0.56496221]
[1735545922601,0.28634834,698.45,697.75,0.56496221]
[1735545922802,0.28634834,698.45,697.76,0.56496221]
[1735545922999,0.28634834,698.45,697.77,0.56496221]
[1735545923197,0.28634834,698.45,697.78,0.56496221]
[1735545923401,0.28634834,698.45,697.79,0.56496221]
[1735545923601,0.28634834,698.45,697.8,0.56496221]
[1735545923902,0.28634834,698.45,697.25,1.28260518]
[1735545923903,0.28634834,698.45,697.81,0.56496221]
[1735545924099,0.28634834,698.45,697.82,0.56496221]
[1735545924298,0.28634834,698.45,697.83,0.56496221]
[1735545924505,0.28634834,698.45,697.84,0.56496221]
[1735545924702,0.28634834,698.45,697.85,0.56496221]
[1735545924901,0.28634834,698.45,697.86,0.56496221]
[1735545925102,0.28634834,698.45,697.87,0.56496221]
[1735545925299,0.28634834,698.45,697.88,0.56496221]
[1735545925503,0.28634834,698.45,697.89,0.56496221]
[1735545925704,0.28634834,698.45,697.9,0.56496221]
[1735545926003,0.28634834,698.45,697.91,0.56496221]
[1735545926198,0.28634834,698.45,697.92,0.56496221]
[1735545926402,0.28634834,698.45,697.93,0.56496221]
[1735545926602,0.28634834,698.45,697.94,0.56496221]
[1735545926797,0.28634834,698.45,697.95,0.56496221]
[1735545927002,0.28634834,698.45,697.75,1.06883765]
[1735545927003,0.28634834,698.45,697.96,0.56496221]
[1735545927205,0.28634834,698.45,697.97,0.56496221]
[1735545927406,0.28634834,698.45,697.98,0.56496221]
[1735545927606,0.28634834,698.45,697.99,0.56496221]
[1735545927905,0.28634834,698.45,698.0,0.56496221]
[1735545928104,0.28634834,698.45,698.01,0.56496221]
[1735545928300,0.28634834,698.45,698.02,0.56496221]
[1735545928502,0.28634834,698.45,698.03,0.56496221]
[1735545928704,0.28634834,698.45,698.04,0.56496221]
[1735545928904,0.28634834,698.45,698.05,0.56496221]
[1735545929104,0.28634834,698.45,697.35,1.06883765]
[1735545929401,0.28634834,698.45,697.36,0.56456286]
[1735545929607,0.28634834,698.45,697.37,0.56456286]
[1735545929807,0.28634834,698.45,697.39,1.06883765]
[1735545930007,0.28634834,698.45,697.4,0.56456286]
[1735545930307,0.28634834,698.45,697.41,0.56456286]
[1735545930507,0.28634834,698.45,697.42,0.56456286]
[1735545930704,0.28634834,698.45,697.43,0.56456286]
[1735545930909,0.28634834,698.45,697.44,0.56456286]
[1735545931110,0.28634834,698.45,697.45,0.56456286]
[1735545931308,0.28634834,698.45,697.46,0.56456286]
[1735545931506,0.28634834,698.45,697.34,1.06883765]
[1735545931709,0.28634834,698.45,697.35,0.56467881]
[1735545932008,0.28634834,698.45,697.36,0.56467881]
[1735545932209,0.28634834,698.45,697.37,0.56467881]
[1735545932410,0.28634834,698.45,697.38,0.56467881]
[1735545932612,0.28634834,698.45,697.39,0.56467881]
[1735545932805,0.28634834,698.45,697.4,0.56467881]
[1735545933111,0.28634834,698.45,697.41,0.56467881]
[1735545933408,0.28634834,698.45,697.42,0.56467881]
[1735545933608,0.28634834,698.45,697.43,0.56467881]
[1735545933808,0.28634834,698.45,697.44,0.56467881]
[1735545934009,0.28634834,698.45,697.45,0.56467881]
[1735545934208,0.28634834,698.45,697.46,0.56467881]
[1735545934411,0.28634834,698.45,697.47,0.56467881]
[1735545934611,0.28634834,698.45,697.48,0.56476095]
[1735545934906,0.28634834,698.45,697.49,0.56476095]
[1735545935210,0.28634834,698.45,697.5,0.56476095]
[1735545935410,0.28634834,698.45,697.51,0.56476095]
[1735545935611,0.28634834,698.45,697.52,0.56476095]
[1735545935810,0.28634834,698.45,697.53,0.56476095]
[1735545936011,0.28634834,698.45,697.54,0.56476095]
[1735545936208,0.28634834,698.45,697.55,0.56476095]
[1735545936506,0.28634834,698.45,697.56,0.56476095]
[1735545936705,0.28634834,698.45,697.57,0.56476095]
[1735545936910,0.28634834,698.45,697.58,0.56476095]
[1735545937112,0.28634834,698.45,697.78,1.06883765]
[1735545937413,0.28634834,698.45,697.79,0.56476095]
[1735545937612,0.28634834,698.45,697.78,1.06883765]
[1735545937813,0.28634834,698.45,697.79,0.56472758]
[1735545938110,0.28634834,698.45,697.78,1.06883765]
[1735545938312,0.28634834,698.45,697.79,0.56472407]
[1735545938513,0.28634834,698.45,697.8,0.56472407]
[1735545938715,0.28634834,698.45,697.81,0.56472407]
[1735545938909,0.28634834,698.45,697.82,0.56472407]
[1735545939109,0.28634834,698.45,697.75,1.06883765]
[1735545939110,0.28634834,698.45,697.83,0.56472407]
[1735545939309,0.28634834,698.45,697.84,0.56472407]
[1735545939507,0.28634834,698.45,697.85,0.56472407]
[1735545939712,0.28634834,698.45,697.86,0.56472407]
[1735545939911,0.28634834,698.45,697.87,0.5647332]
[1735545940112,0.28634834,698.45,697.88,0.5647332]
[1735545940307,0.28634834,698.45,697.89,0.5647332]
[1735545940510,0.28634834,698.45,697.9,0.5647332]
[1735545940812,0.28634834,698.45,697.91,0.5647332]
[1735545941005,0.28634834,698.45,697.92,0.5647332]
[1735545941207,0.28634834,698.45,697.93,0.5647332]
[1735545941414,0.28634834,698.45,697.94,0.5647332]
[1735545941609,0.28634834,698.45,697.95,0.5647332]
[1735545941915,0.28634834,698.45,697.96,0.5647332]
[1735545942117,0.28634834,698.45,697.97,0.5647332]
[1735545942416,0.28634834,698.45,697.98,0.5647332]
[1735545942715,0.28634834,698.45,697.99,0.5647332]
[1735545942911,0.28634834,698.45,698.0,0.5647332]
[1735545943117,0.28634834,698.45,698.01,0.5647332]
[1735545943415,0.28634834,698.45,698.02,0.5647332]
[1735545943610,0.28634834,698.45,698.03,0.5647332]
[1735545943811,0.28634834,698.45,697.78,1.06883765]
[1735545944013,0.28634834,698.45,697.79,0.56469144]
[1735545944213,0.28634834,698.45,697.8,0.56469144]
[1735545944412,0.28634834,698.45,697.81,0.56469144]
[1735545944612,0.28634834,698.45,697.78,1.06883765]
[1735545944613,0.28634834,698.45,697.82,0.56469144]
[1735545944815,0.28634834,698.45,697.83,0.56469144]
[1735545945014,0.28634834,698.45,697.84,0.56469144]
[1735545945212,0.28634834,698.45,697.85,0.56469144]
[1735545945415,0.28634834,698.45,697.86,0.56469144]
[1735545945614,0.28634834,698.45,697.87,0.56469144]
[1735545945916,0.28634834,698.45,697.88,0.56469144]
[1735545946113,0.28634834,698.45,697.89,0.56469144]
[1735545946313,0.28634834,698.45,697.9,0.56469144]
[1735545946519,0.28634834,698.45,697.91,0.56469144]
[1735545946719,0.28634834,698.45,697.81,1.06883765]
[1735545946720,0.28634834,698.45,697.92,0.56469144]
[1735545946920,0.28634834,698.45,697.93,0.56481087]
[1735545947119,0.28634834,698.45,697.94,0.56481087]
[1735545947422,0.28634834,698.45,697.95,0.56478264]
[1735545947721,0.28634834,698.45,697.96,0.56478264]
[1735545948022,0.28634834,698.45,697.97,0.56478264]
[1735545948317,0.28634834,698.45,697.98,0.56478264]
[1735545948621,0.28634834,698.45,697.99,0.56478264]
[1735545948923,0.28634834,698.45,698.0,0.56478264]
[1735545949114,0.28634834,698.45,698.01,0.56478264]
[1735545949319,0.28634834,698.45,698.02,0.56476086]
[1735545949520,0.28634834,698.45,698.03,0.56476086]
[1735545949719,0.28634834,698.45,698.04,0.56476086]
[1735545949920,0.28634834,698.45,698.05,0.56476086]
[1735545950121,0.28634834,698.45,697.83,1.06883765]
[1735545950122,0.28634834,698.45,698.06,0.56473998]
[1735545950419,0.28634834,698.45,698.07,0.56473998]
[1735545950620,0.28634834,698.45,698.08,0.56473998]
[1735545950819,0.28634834,698.45,698.09,0.56473998]
[1735545951022,0.28634834,698.45,698.1,0.56473998]
[1735545951320,0.28634834,698.45,698.11,0.56473998]
[1735545951514,0.28634834,698.45,698.12,0.56473998]
[1735545951714,0.28634834,698.45,698.13,0.56473998]
[1735545951919,0.28634834,698.45,698.14,0.56473998]
[1735545952119,0.28634834,698.45,698.15,0.56473998]
[1735545952421,0.28634834,698.45,698.16,0.56473998]
[1735545952621,0.28634834,698.45,698.17,0.56473998]
[1735545952923,0.28634834,698.45,698.18,0.56473998]
[1735545953121,0.28634834,698.45,697.85,1.06883765]
[1735545953321,0.28634834,698.45,697.86,0.56471365]
[1735545953521,0.28634834,698.45,697.87,0.56471365]
[1735545953821,0.28634834,698.45,697.88,0.56471365]
[1735545954021,0.28634834,698.45,697.89,0.56471365]
[1735545954222,0.28634834,698.45,697.9,0.56471365]
[1735545954422,0.28634834,698.45,697.91,0.56471365]
[1735545954722,0.28634834,698.45,697.92,0.56471365]
[1735545955024,0.28634834,698.45,697.93,0.56471365]
[1735545955222,0.28634834,698.45,697.94,0.56471365]
[1735545955521,0.28634834,698.45,697.95,0.56471365]
[1735545955723,0.28634834,698.45,697.96,0.56471365]
[1735545955919,0.28634834,698.45,697.97,0.56471365]
[1735545956121,0.28634834,698.45,697.98,0.56471365]
[1735545956321,0.28634834,698.45,697.99,0.56471365]
[1735545956621,0.28634834,698.45,697.85,1.06883765]
[1735545956822,0.28634834,698.45,697.86,0.56483547]
[1735545957024,0.28634834,698.45,697.87,0.56483547]
[1735545957216,0.28634834,698.45,697.88,0.56483547]
[1735545957420,0.28634834,698.45,697.89,0.56483547]
[1735545957620,0.28634834,698.45,697.9,0.56483547]
[1735545957923,0.28634834,698.45,697.91,0.56483547]
[1735545958223,0.28634834,698.45,697.92,0.56483547]
[1735545958422,0.28634834,698.45,697.93,0.56483547]
[1735545958622,0.28634834,698.45,697.94,0.56483547]
[1735545958822,0.28634834,698.45,697.95,0.56483547]
[1735545959121,0.28634834,698.45,697.96,0.56483547]
[1735545959317,0.28634834,698.45,697.97,0.56483547]
[1735545959521,0.28634834,698.45,697.98,0.56483547]
[1735545959723,0.28634834,698.45,697.99,0.56483547]
[1735545959918,0.28634834,698.45,698.0,0.56483547]
[1735545960120,0.28634834,698.45,698.01,0.56483547]
[1735545960322,0.28634834,698.45,698.02,0.56483547]
[1735545960524,0.28634834,698.45,698.03,0.56483547]
[1735545960824,0.28634834,698.45,698.04,0.56483547]
[1735545961022,0.28634834,698.45,698.05,0.56483547]
[1735545961219,0.28634834,698.45,698.06,0.56483547]
[1735545961424,0.28634834,698.45,698.07,0.56510997]
[1735545961724,0.28634834,698.45,698.08,0.56510997]
[1735545961920,0.28634834,698.45,698.09,0.56510997]
[1735545962125,0.28634834,698.45,698.1,0.56510997]
[1735545962324,0.28634834,698.45,698.11,0.56510997]
[1735545962519,0.28634834,698.45,698.12,0.56510997]
[1735545962723,0.28634834,698.45,698.13,0.56510997]
[1735545962921,0.28634834,698.45,698.14,0.56510997]
[1735545963227,0.28634834,698.45,698.15,0.56510997]
[1735545963427,0.28634834,698.45,698.16,0.56510997]
[1735545963628,0.28634834,698.45,698.17,0.56510997]
[1735545963828,0.28634834,698.45,698.18,0.56510997]
[1735545964129,0.28634834,698.45,698.19,0.56510997]
[1735545964427,0.28634834,698.45,698.2,0.56526913]
[1735545964625,0.28634834,698.45,698.21,0.56526913]
[1735545964827,0.28634834,698.45,698.22,0.56526913]
[1735545965020,0.28634834,698.45,698.23,0.56526913]
[1735545965223,0.28634834,698.45,698.24,0.56526913]
[1735545965425,0.28634834,698.45,698.25,0.56526913]
[1735545965619,0.28634834,698.45,698.26,0.56526913]
[1735545965823,0.28634834,698.45,698.27,0.56526913]
[1735545966028,0.28634834,698.45,697.33,1.28260518]
[1735545966029,0.28634834,698.45,698.28,0.56526913]
[1735545966230,0.28634834,698.45,698.29,0.56526913]
[1735545966427,0.28634834,698.45,698.3,0.56526913]
[1735545966628,0.28634834,698.45,698.31,0.56526913]
[1735545966829,0.28634834,698.45,697.38,1.28260518]
[1735545966830,0.28634834,698.45,698.32,0.56526913]
[1735545967022,0.28634834,698.45,698.33,0.56526913]
[1735545967224,0.28634834,698.45,698.34,0.56526913]
[1735545967427,0.28634834,698.45,698.35,0.56526913]
[1735545967624,0.28634834,698.45,698.36,0.56526913]
[1735545967824,0.28634834,698.45,698.37,0.56526913]
[1735545968029,0.28634834,698.45,698.38,0.56526913]
[1735545968231,0.28634834,698.45,698.39,0.56526913]
[1735545968530,0.28634834,698.45,698.4,0.56526913]
[1735545968724,0.28634834,698.45,698.41,0.56526913]
[1735545968927,0.28634834,698.45,697.81,1.06883765]
[1735545969126,0.28634834,698.45,697.82,0.56559443]
[1735545969325,0.28634834,698.45,697.83,0.56559443]
[1735545969531,0.28634834,698.45,697.84,0.56559443]
[1735545969828,0.28634834,698.45,697.85,0.56559443]
[1735545970025,0.28634834,698.45,697.86,0.56559443]
[1735545970226,0.28634834,698.45,697.87,0.56559443]
[1735545970433,0.28634834,698.45,697.77,1.06883765]
[1735545970627,0.28634834,698.45,697.78,0.56570434]
[1735545970829,0.28634834,698.45,697.79,0.56570434]
[1735545971029,0.28634834,698.45,697.8,0.56570434]
[1735545971228,0.28634834,698.45,697.81,0.56570434]
[1735545971434,0.28634834,698.45,697.82,0.56570434]
[1735545971636,0.28634834,698.45,697.83,0.56570434]